[Event "Early-Titled-Tuesday-Blitz-October-03-2023"]
[Site "Chess.com"]
[Date "2023.10.03"]
[Round "6"]
[White "mortngabriel"]
[Black "LangesNasenhaar"]
[Result "0-1"]
[WhiteElo "2571"]
[BlackElo "2450"]
[TimeControl "180+1"]
[EndTime "9:07:52 PDT"]
[Termination "LangesNasenhaar won by checkmate"]

1. d4 {[%clk 0:03:00.9]} 1... g6 {[%clk 0:02:59.8]} 2. e4 {[%clk 0:02:59.9]}
2... Bg7 {[%clk 0:03:00.3]} 3. Nf3 {[%clk 0:02:59.9]} 3... c6 {[%clk 0:03:01]}
4. h3 {[%clk 0:02:51.2]} 4... d5 {[%clk 0:03:01.4]} 5. Nc3 {[%clk 0:02:47.4]}
5... dxe4 {[%clk 0:03:00.5]} 6. Nxe4 {[%clk 0:02:48.3]} 6... Nd7 {[%clk
0:02:59.5]} 7. Bc4 {[%clk 0:02:47.6]} 7... Ngf6 {[%clk 0:02:58.7]} 8. Nxf6+
{[%clk 0:02:46]} 8... Nxf6 {[%clk 0:02:58]} 9. O-O {[%clk 0:02:45.6]} 9... O-O
{[%clk 0:02:58.1]} 10. Bg5 {[%clk 0:02:40.3]} 10... Qc7 {[%clk 0:02:50.7]} 11.
c3 {[%clk 0:02:37.3]} 11... c5 {[%clk 0:02:48.8]} 12. Bb3 {[%clk 0:02:34.2]}
12... cxd4 {[%clk 0:02:45.1]} 13. Qxd4 {[%clk 0:02:33.9]} 13... b6 {[%clk
0:02:25.3]} 14. Qf4 {[%clk 0:02:20.8]} 14... Qxf4 {[%clk 0:02:19.7]} 15. Bxf4
{[%clk 0:02:21.7]} 15... Bb7 {[%clk 0:02:16.4]} 16. Ne5 {[%clk 0:02:19.8]} 16...
Nd5 {[%clk 0:02:08.4]} 17. Bg3 {[%clk 0:02:12.7]} 17... e6 {[%clk 0:02:00.5]}
18. Rad1 {[%clk 0:02:07.4]} 18... Rad8 {[%clk 0:01:52.1]} 19. a3 {[%clk
0:02:04.4]} 19... Nf6 {[%clk 0:01:26.1]} 20. Rxd8 {[%clk 0:01:55.2]} 20... Rxd8
{[%clk 0:01:25.4]} 21. Rd1 {[%clk 0:01:56.1]} 21... Rxd1+ {[%clk 0:01:23.9]} 22.
Bxd1 {[%clk 0:01:57]} 22... Ne4 {[%clk 0:01:15.7]} 23. Bh2 {[%clk 0:01:57.1]}
23... Nc5 {[%clk 0:00:59.8]} 24. Bc2 {[%clk 0:01:37]} 24... f6 {[%clk
0:00:57.1]} 25. Nd3 {[%clk 0:01:31.9]} 25... Nxd3 {[%clk 0:00:47.5]} 26. Bxd3
{[%clk 0:01:32.8]} 26... e5 {[%clk 0:00:47.9]} 27. Bc4+ {[%clk 0:01:26]} 27...
Kf8 {[%clk 0:00:46.7]} 28. f3 {[%clk 0:01:25.6]} 28... Bh6 {[%clk 0:00:40.9]}
29. f4 {[%clk 0:00:58.1]} 29... Bxf4 {[%clk 0:00:34.6]} 30. Bxf4 {[%clk
0:00:58.1]} 30... exf4 {[%clk 0:00:35.5]} 31. Kf2 {[%clk 0:00:57.9]} 31... Ke7
{[%clk 0:00:34.6]} 32. h4 {[%clk 0:00:57.5]} 32... g5 {[%clk 0:00:32.4]} 33. Be2
{[%clk 0:00:55.3]} 33... h6 {[%clk 0:00:24.6]} 34. Bg4 {[%clk 0:00:53.5]} 34...
Kd6 {[%clk 0:00:23]} 35. b4 {[%clk 0:00:51.7]} 35... Ke5 {[%clk 0:00:22.5]} 36.
Bh5 {[%clk 0:00:45.5]} 36... Bc8 {[%clk 0:00:14.4]} 37. Bf3 {[%clk 0:00:41.8]}
37... g4 {[%clk 0:00:12.3]} 38. Bc6 {[%clk 0:00:40.5]} 38... g3+ {[%clk
0:00:09.7]} 39. Kf1 {[%clk 0:00:37.8]} 39... Bf5 {[%clk 0:00:08.5]} 40. Bb7
{[%clk 0:00:32.8]} 40... Bd3+ {[%clk 0:00:06.2]} 41. Kg1 {[%clk 0:00:31.4]}
41... Bc4 {[%clk 0:00:06.1]} 42. Bc6 {[%clk 0:00:29]} 42... Kf5 {[%clk 0:00:06]}
43. Bd7+ {[%clk 0:00:28.3]} 43... Ke4 {[%clk 0:00:06.2]} 44. a4 {[%clk
0:00:23.5]} 44... Ke3 {[%clk 0:00:06.2]} 45. a5 {[%clk 0:00:23.1]} 45... Kd2
{[%clk 0:00:06]} 46. axb6 {[%clk 0:00:21.7]} 46... axb6 {[%clk 0:00:06.9]} 47.
h5 {[%clk 0:00:16.8]} 47... Kxc3 {[%clk 0:00:06.8]} 48. b5 {[%clk 0:00:17.7]}
48... Kb4 {[%clk 0:00:06.9]} 49. Bg4 {[%clk 0:00:11.4]} 49... Bxb5 {[%clk
0:00:06.8]} 50. Bf3 {[%clk 0:00:10.7]} 50... Bd3 {[%clk 0:00:06.1]} 51. Bd1
{[%clk 0:00:10.7]} 51... Kc3 {[%clk 0:00:06.5]} 52. Ba4 {[%clk 0:00:10.5]} 52...
b5 {[%clk 0:00:05.6]} 53. Bd1 {[%clk 0:00:10.6]} 53... b4 {[%clk 0:00:05.6]} 54.
Ba4 {[%clk 0:00:09.2]} 54... b3 {[%clk 0:00:05.7]} 55. Bxb3 {[%clk 0:00:09.9]}
55... Kxb3 {[%clk 0:00:06.5]} 56. Kh1 {[%clk 0:00:10.2]} 56... Kc3 {[%clk
0:00:06.8]} 57. Kg1 {[%clk 0:00:11.1]} 57... Kd4 {[%clk 0:00:07.2]} 58. Kh1
{[%clk 0:00:12]} 58... Ke3 {[%clk 0:00:07.5]} 59. Kg1 {[%clk 0:00:12.9]} 59...
f3 {[%clk 0:00:07.7]} 60. Kh1 {[%clk 0:00:13.8]} 60... fxg2+ {[%clk 0:00:07]}
61. Kg1 {[%clk 0:00:14.2]} 61... Kf4 {[%clk 0:00:06.5]} 62. Kxg2 {[%clk
0:00:13.8]} 62... Be4+ {[%clk 0:00:07.4]} 63. Kh3 {[%clk 0:00:13.8]} 63... Kf3
{[%clk 0:00:06.9]} 64. Kh4 {[%clk 0:00:13.8]} 64... g2 {[%clk 0:00:07.4]} 65.
Kh3 {[%clk 0:00:14.6]} 65... g1=Q {[%clk 0:00:06.9]} 66. Kh4 {[%clk 0:00:15.5]}
66... Qg3# {[%clk 0:00:07.3]} 0-1

[Event "Early-Titled-Tuesday-Blitz-October-03-2023"]
[Site "Chess.com"]
[Date "2023.10.03"]
[Round "6"]
[White "MidnightFox"]
[Black "KatakuriDono"]
[Result "1-0"]
[WhiteElo "2482"]
[BlackElo "2333"]
[TimeControl "180+1"]
[EndTime "9:07:53 PDT"]
[Termination "MidnightFox won by resignation"]

1. d4 {[%clk 0:03:00.9]} 1... d5 {[%clk 0:02:59.5]} 2. c4 {[%clk 0:03:01]} 2...
dxc4 {[%clk 0:03:00.4]} 3. e4 {[%clk 0:02:59.4]} 3... Nc6 {[%clk 0:02:59.7]} 4.
Be3 {[%clk 0:02:55.5]} 4... Nf6 {[%clk 0:02:53.1]} 5. Nc3 {[%clk 0:02:54]} 5...
e5 {[%clk 0:02:49.4]} 6. d5 {[%clk 0:02:53.7]} 6... Ne7 {[%clk 0:02:49.4]} 7.
Bxc4 {[%clk 0:02:51.2]} 7... Ng6 {[%clk 0:02:49.1]} 8. h3 {[%clk 0:02:49.4]}
8... Bd6 {[%clk 0:02:47.1]} 9. Bb5+ {[%clk 0:02:44.9]} 9... Bd7 {[%clk
0:02:46.8]} 10. Bxd7+ {[%clk 0:02:44.7]} 10... Qxd7 {[%clk 0:02:47.1]} 11. Nge2
{[%clk 0:02:44.6]} 11... O-O {[%clk 0:02:46.2]} 12. O-O {[%clk 0:02:43.9]} 12...
Nh5 {[%clk 0:02:36.1]} 13. Ng3 {[%clk 0:02:41.3]} 13... Nxg3 {[%clk 0:02:30.6]}
14. fxg3 {[%clk 0:02:42.2]} 14... f5 {[%clk 0:02:19.8]} 15. Qh5 {[%clk
0:02:31.4]} 15... f4 {[%clk 0:01:47.2]} 16. gxf4 {[%clk 0:02:31.1]} 16... exf4
{[%clk 0:01:47.5]} 17. Bd4 {[%clk 0:02:27.7]} 17... Rae8 {[%clk 0:01:40.3]} 18.
Rae1 {[%clk 0:02:18.8]} 18... Be5 {[%clk 0:01:34.5]} 19. Ne2 {[%clk 0:02:04.4]}
19... Qd6 {[%clk 0:01:20.4]} 20. Bxe5 {[%clk 0:01:59.7]} 20... Rxe5 {[%clk
0:01:18.9]} 21. Qf3 {[%clk 0:01:56.6]} 21... Nh4 {[%clk 0:01:02.2]} 22. Qd3
{[%clk 0:01:48.1]} 22... f3 {[%clk 0:00:59.7]} 23. Rxf3 {[%clk 0:01:25.7]} 23...
Nxf3+ {[%clk 0:00:57.3]} 24. gxf3 {[%clk 0:01:26.6]} 24... Rg5+ {[%clk
0:00:55.5]} 25. Kh1 {[%clk 0:01:21.5]} 25... Qh6 {[%clk 0:00:51.8]} 26. Kh2
{[%clk 0:01:04.5]} 26... Qh4 {[%clk 0:00:51.4]} 27. Rf1 {[%clk 0:01:01.5]} 27...
Rf6 {[%clk 0:00:39.3]} 28. f4 {[%clk 0:00:59.4]} 28... Rh5 {[%clk 0:00:33.7]}
29. e5 {[%clk 0:00:49.1]} 29... Rg6 {[%clk 0:00:30.1]} 30. e6 {[%clk 0:00:38.3]}
30... Rgh6 {[%clk 0:00:30.1]} 31. Rf3 {[%clk 0:00:32.1]} 31... Rg6 {[%clk
0:00:30.3]} 32. f5 {[%clk 0:00:20.2]} 32... Rgh6 {[%clk 0:00:28]} 33. Qe3 {[%clk
0:00:19.8]} 33... Qe7 {[%clk 0:00:26.3]} 34. Nd4 {[%clk 0:00:16.2]} 34... Rg5
{[%clk 0:00:20]} 35. Rg3 {[%clk 0:00:12]} 35... Rxg3 {[%clk 0:00:17.1]} 36. Qxg3
{[%clk 0:00:12.2]} 36... Rf6 {[%clk 0:00:17]} 37. Qe5 {[%clk 0:00:11.1]} 37...
h6 {[%clk 0:00:15.4]} 38. Qf4 {[%clk 0:00:09.4]} 38... a6 {[%clk 0:00:14.1]} 39.
a3 {[%clk 0:00:09.1]} 39... Kh8 {[%clk 0:00:14.3]} 40. b4 {[%clk 0:00:09]} 40...
a5 {[%clk 0:00:14.5]} 41. bxa5 {[%clk 0:00:08.1]} 41... Qxa3 {[%clk 0:00:14.2]}
42. Qxc7 {[%clk 0:00:07]} 42... Qb2+ {[%clk 0:00:13.9]} 43. Nc2 {[%clk
0:00:06.9]} 43... Rxf5 {[%clk 0:00:13.1]} 44. e7 {[%clk 0:00:05]} 44... Rf2+
{[%clk 0:00:10.2]} 45. Kg3 {[%clk 0:00:04.7]} 45... Re2 {[%clk 0:00:08.8]} 46.
Qc8+ {[%clk 0:00:03.5]} 46... Kh7 {[%clk 0:00:09.2]} 47. Qf5+ {[%clk 0:00:03.5]}
47... Kh8 {[%clk 0:00:09.7]} 48. Qf8+ {[%clk 0:00:02.9]} 48... Kh7 {[%clk
0:00:10.3]} 49. Qf5+ {[%clk 0:00:03.5]} 49... Kh8 {[%clk 0:00:10.1]} 50. Qf8+
{[%clk 0:00:03.6]} 50... Kh7 {[%clk 0:00:10.6]} 51. e8=Q {[%clk 0:00:03.8]}
51... Rxe8 {[%clk 0:00:09.9]} 52. Qxe8 {[%clk 0:00:04.2]} 52... Qxc2 {[%clk
0:00:10.4]} 53. Qe7 {[%clk 0:00:04.6]} 53... Qd3+ {[%clk 0:00:10.2]} 54. Kf4
{[%clk 0:00:03.5]} 54... Qd4+ {[%clk 0:00:10.1]} 55. Qe4+ {[%clk 0:00:04.2]}
55... Qxe4+ {[%clk 0:00:09.6]} 56. Kxe4 {[%clk 0:00:05.1]} 56... Kg8 {[%clk
0:00:08.7]} 57. Ke5 {[%clk 0:00:06]} 57... Kf7 {[%clk 0:00:09]} 58. Kd6 {[%clk
0:00:06.7]} 58... g5 {[%clk 0:00:08.6]} 59. Kc7 {[%clk 0:00:07.3]} 59... h5
{[%clk 0:00:08.1]} 60. d6 {[%clk 0:00:08.2]} 60... g4 {[%clk 0:00:08.7]} 61. d7
{[%clk 0:00:09.1]} 61... gxh3 {[%clk 0:00:09.2]} 62. d8=Q {[%clk 0:00:10]} 62...
h2 {[%clk 0:00:09.8]} 63. Qd1 {[%clk 0:00:10.1]} 63... Kg6 {[%clk 0:00:07.8]}
64. Qh1 {[%clk 0:00:11]} 1-0

[Event "Early-Titled-Tuesday-Blitz-October-03-2023"]
[Site "Chess.com"]
[Date "2023.10.03"]
[Round "6"]
[White "meoluoi91"]
[Black "crazy_m_attack"]
[Result "1-0"]
[WhiteElo "2615"]
[BlackElo "2402"]
[TimeControl "180+1"]
[EndTime "9:08:02 PDT"]
[Termination "meoluoi91 won by checkmate"]

1. e4 {[%clk 0:02:47.9]} 1... e5 {[%clk 0:02:59.7]} 2. Bc4 {[%clk 0:02:45.4]}
2... Nf6 {[%clk 0:02:59.3]} 3. Nc3 {[%clk 0:02:44.7]} 3... Nxe4 {[%clk
0:02:58.8]} 4. Nxe4 {[%clk 0:02:40.4]} 4... d5 {[%clk 0:02:58.4]} 5. Bb5+ {[%clk
0:02:37.8]} 5... c6 {[%clk 0:02:57.3]} 6. Bd3 {[%clk 0:02:37.8]} 6... dxe4
{[%clk 0:02:55.9]} 7. Bxe4 {[%clk 0:02:38.7]} 7... Bd6 {[%clk 0:02:47.8]} 8. d3
{[%clk 0:02:37.8]} 8... Nd7 {[%clk 0:02:40.5]} 9. Ne2 {[%clk 0:02:34.5]} 9...
Nc5 {[%clk 0:02:36.9]} 10. Bf3 {[%clk 0:02:28.3]} 10... O-O {[%clk 0:02:36.7]}
11. O-O {[%clk 0:02:26.3]} 11... Bf5 {[%clk 0:02:27]} 12. Ng3 {[%clk 0:02:25.1]}
12... Bg6 {[%clk 0:02:27.1]} 13. Bh5 {[%clk 0:02:23.9]} 13... Qh4 {[%clk
0:02:20.9]} 14. Bxg6 {[%clk 0:02:18.8]} 14... hxg6 {[%clk 0:02:21.8]} 15. Qf3
{[%clk 0:02:12.4]} 15... Rae8 {[%clk 0:02:10.5]} 16. Ne4 {[%clk 0:02:10.2]}
16... Nxe4 {[%clk 0:02:09.3]} 17. dxe4 {[%clk 0:02:10]} 17... Re6 {[%clk
0:02:05]} 18. Re1 {[%clk 0:01:40.7]} 18... Rf6 {[%clk 0:01:30.8]} 19. Qe2 {[%clk
0:01:27]} 19... Rd8 {[%clk 0:01:02.5]} 20. g3 {[%clk 0:01:22.8]} 20... Qh3
{[%clk 0:00:58.5]} 21. Be3 {[%clk 0:01:22.2]} 21... Re6 {[%clk 0:00:51.6]} 22.
Rad1 {[%clk 0:01:16.4]} 22... b6 {[%clk 0:00:48.7]} 23. Bg5 {[%clk 0:01:12.7]}
23... Rc8 {[%clk 0:00:42.7]} 24. Qa6 {[%clk 0:01:08.5]} 24... Rc7 {[%clk
0:00:37.7]} 25. a3 {[%clk 0:01:03.4]} 25... Qg4 {[%clk 0:00:22.9]} 26. h4 {[%clk
0:00:56.7]} 26... Bc5 {[%clk 0:00:14.2]} 27. Kg2 {[%clk 0:00:56.2]} 27... Re8
{[%clk 0:00:12.2]} 28. Rd2 {[%clk 0:00:50.3]} 28... Qe6 {[%clk 0:00:10.2]} 29.
c3 {[%clk 0:00:46.8]} 29... Rd7 {[%clk 0:00:09.6]} 30. Red1 {[%clk 0:00:45.1]}
30... Rxd2 {[%clk 0:00:08.1]} 31. Rxd2 {[%clk 0:00:45.7]} 31... f6 {[%clk
0:00:08.1]} 32. Be3 {[%clk 0:00:44.8]} 32... Bxe3 {[%clk 0:00:08.3]} 33. fxe3
{[%clk 0:00:45.6]} 33... Qg4 {[%clk 0:00:08.5]} 34. Qc4+ {[%clk 0:00:45.1]}
34... Kh7 {[%clk 0:00:08.7]} 35. Qxc6 {[%clk 0:00:44]} 35... Rc8 {[%clk
0:00:06.3]} 36. Qd5 {[%clk 0:00:42.7]} 36... Rc5 {[%clk 0:00:06.3]} 37. Qa8
{[%clk 0:00:41.2]} 37... Rc4 {[%clk 0:00:06.7]} 38. Rd8 {[%clk 0:00:37.5]} 38...
Qxe4+ {[%clk 0:00:05.1]} 39. Qxe4 {[%clk 0:00:38.4]} 39... Rxe4 {[%clk
0:00:05.8]} 40. Kf3 {[%clk 0:00:38.4]} 40... Ra4 {[%clk 0:00:06.1]} 41. e4
{[%clk 0:00:29.7]} 41... Ra5 {[%clk 0:00:03]} 42. g4 {[%clk 0:00:23.8]} 42...
Rb5 {[%clk 0:00:03.2]} 43. b4 {[%clk 0:00:22.7]} 43... a5 {[%clk 0:00:02.5]} 44.
g5 {[%clk 0:00:22.7]} 44... axb4 {[%clk 0:00:02.6]} 45. axb4 {[%clk 0:00:22.6]}
45... f5 {[%clk 0:00:01.9]} 46. Rd7 {[%clk 0:00:21.8]} 46... f4 {[%clk
0:00:01.6]} 47. Rd6 {[%clk 0:00:21.6]} 47... Kg8 {[%clk 0:00:01.1]} 48. Rxg6
{[%clk 0:00:21.6]} 48... Kf7 {[%clk 0:00:01.8]} 49. Rd6 {[%clk 0:00:21.8]} 49...
Ke7 {[%clk 0:00:02.5]} 50. Rd3 {[%clk 0:00:21.7]} 50... Ke6 {[%clk 0:00:02.3]}
51. Kg4 {[%clk 0:00:21.9]} 51... g6 {[%clk 0:00:02.5]} 52. Rd8 {[%clk
0:00:20.3]} 52... Ke7 {[%clk 0:00:02]} 53. Rg8 {[%clk 0:00:19.2]} 53... Kf7
{[%clk 0:00:02.5]} 54. Rc8 {[%clk 0:00:18.7]} 54... Ke7 {[%clk 0:00:02.2]} 55.
Rc6 {[%clk 0:00:18.8]} 55... Kf7 {[%clk 0:00:02.7]} 56. Rf6+ {[%clk 0:00:18.9]}
56... Kg7 {[%clk 0:00:03.3]} 57. h5 {[%clk 0:00:17.4]} 57... gxh5+ {[%clk
0:00:03.1]} 58. Kxh5 {[%clk 0:00:18.3]} 58... Kh7 {[%clk 0:00:02.5]} 59. g6+
{[%clk 0:00:17.6]} 59... Kg7 {[%clk 0:00:02.8]} 60. Rf7+ {[%clk 0:00:17.9]}
60... Kg8 {[%clk 0:00:03.2]} 61. Kh6 {[%clk 0:00:18.5]} 61... Kh8 {[%clk
0:00:02.5]} 62. Rf8# {[%clk 0:00:18.4]} 1-0

[Event "Early-Titled-Tuesday-Blitz-October-03-2023"]
[Site "Chess.com"]
[Date "2023.10.03"]
[Round "6"]
[White "Shuvalov"]
[Black "SashaKuzhilniy"]
[Result "0-1"]
[WhiteElo "2464"]
[BlackElo "2626"]
[TimeControl "180+1"]
[EndTime "9:08:04 PDT"]
[Termination "SashaKuzhilniy won by resignation"]

1. d4 {[%clk 0:03:00.9]} 1... g6 {[%clk 0:03:00.3]} 2. c4 {[%clk 0:03:00.4]}
2... Bg7 {[%clk 0:03:01]} 3. Nc3 {[%clk 0:03:00.2]} 3... d6 {[%clk 0:03:01.6]}
4. e4 {[%clk 0:03:00.5]} 4... Nf6 {[%clk 0:03:00.8]} 5. Nf3 {[%clk 0:03:00.5]}
5... O-O {[%clk 0:03:01.4]} 6. Be2 {[%clk 0:03:01.1]} 6... e5 {[%clk 0:03:01]}
7. O-O {[%clk 0:03:01.7]} 7... exd4 {[%clk 0:03:01]} 8. Nxd4 {[%clk 0:03:02.6]}
8... Re8 {[%clk 0:03:01.7]} 9. f3 {[%clk 0:03:03]} 9... c6 {[%clk 0:03:02.3]}
10. Kh1 {[%clk 0:03:01.6]} 10... Nbd7 {[%clk 0:03:02.3]} 11. Nc2 {[%clk
0:02:55.7]} 11... Nb6 {[%clk 0:03:01.4]} 12. Bg5 {[%clk 0:02:53.1]} 12... h6
{[%clk 0:02:48.4]} 13. Be3 {[%clk 0:02:49.4]} 13... Be6 {[%clk 0:02:48.1]} 14.
b3 {[%clk 0:02:34.3]} 14... d5 {[%clk 0:02:34.9]} 15. exd5 {[%clk 0:02:14]}
15... cxd5 {[%clk 0:02:33.3]} 16. c5 {[%clk 0:02:14.3]} 16... Nbd7 {[%clk
0:02:27.8]} 17. Qd2 {[%clk 0:02:14]} 17... Kh7 {[%clk 0:02:12.3]} 18. Rac1
{[%clk 0:02:05]} 18... Rc8 {[%clk 0:02:02.9]} 19. b4 {[%clk 0:02:04.5]} 19...
Ne5 {[%clk 0:02:03.3]} 20. Rfd1 {[%clk 0:01:59]} 20... Nc4 {[%clk 0:01:53.4]}
21. Bxc4 {[%clk 0:01:58.7]} 21... dxc4 {[%clk 0:01:54.3]} 22. Nb5 {[%clk
0:01:38.7]} 22... Qxd2 {[%clk 0:01:24.1]} 23. Rxd2 {[%clk 0:01:31.2]} 23... Rcd8
{[%clk 0:01:18.2]} 24. Rcd1 {[%clk 0:01:19.6]} 24... Rxd2 {[%clk 0:01:16.8]} 25.
Rxd2 {[%clk 0:01:20.5]} 25... Nd5 {[%clk 0:01:02.5]} 26. Bd4 {[%clk 0:01:17.5]}
26... c3 {[%clk 0:00:55.4]} 27. Rd1 {[%clk 0:01:12.8]} 27... Bf5 {[%clk
0:00:52]} 28. Re1 {[%clk 0:00:59.7]} 28... Rxe1+ {[%clk 0:00:48.8]} 29. Nxe1
{[%clk 0:01:00.6]} 29... c2 {[%clk 0:00:48.2]} 30. Nxc2 {[%clk 0:00:58.3]} 30...
Bxc2 {[%clk 0:00:49.1]} 31. Bxg7 {[%clk 0:00:57.8]} 31... Kxg7 {[%clk 0:00:50]}
32. Nxa7 {[%clk 0:00:57.8]} 32... Nxb4 {[%clk 0:00:49.3]} 33. a3 {[%clk
0:00:55.3]} 33... Na6 {[%clk 0:00:49.7]} 34. c6 {[%clk 0:00:54.1]} 34... bxc6
{[%clk 0:00:35.2]} 35. Nxc6 {[%clk 0:00:55]} 35... Kf6 {[%clk 0:00:34.4]} 36.
Nd4 {[%clk 0:00:54.8]} 36... Ba4 {[%clk 0:00:33.7]} 37. Kg1 {[%clk 0:00:54.4]}
37... Nc7 {[%clk 0:00:33.4]} 38. Kf2 {[%clk 0:00:53.8]} 38... Nb5 {[%clk
0:00:33.3]} 39. Ne2 {[%clk 0:00:47.8]} 39... Nxa3 {[%clk 0:00:32.2]} 40. Nc3
{[%clk 0:00:48.1]} 40... Bc6 {[%clk 0:00:31.3]} 41. h4 {[%clk 0:00:46.8]} 41...
Nb5 {[%clk 0:00:31.1]} 42. Ne2 {[%clk 0:00:46.3]} 42... Nd6 {[%clk 0:00:31.3]}
43. Nd4 {[%clk 0:00:45.2]} 43... Bd7 {[%clk 0:00:31]} 44. Ne2 {[%clk 0:00:43.4]}
44... Nf5 {[%clk 0:00:30.8]} 45. g3 {[%clk 0:00:41.9]} 45... Bb5 {[%clk
0:00:31]} 46. Nf4 {[%clk 0:00:41.1]} 46... Bc6 {[%clk 0:00:30.6]} 47. Ne2 {[%clk
0:00:38.8]} 47... Ke5 {[%clk 0:00:27.7]} 48. Nc3 {[%clk 0:00:30.4]} 48... Nd4
{[%clk 0:00:26.2]} 49. f4+ {[%clk 0:00:29.3]} 49... Kf5 {[%clk 0:00:25.8]} 50.
Nd1 {[%clk 0:00:28.2]} 50... Ke4 {[%clk 0:00:22.6]} 51. Ne3 {[%clk 0:00:26.7]}
51... Bd5 {[%clk 0:00:20]} 52. Ng4 {[%clk 0:00:23.4]} 52... Nf5 {[%clk
0:00:20.1]} 53. Nf6+ {[%clk 0:00:20.6]} 53... Kd4 {[%clk 0:00:20.3]} 54. Nd7
{[%clk 0:00:20.6]} 54... Be6 {[%clk 0:00:19.3]} 55. Ne5 {[%clk 0:00:20.7]} 55...
h5 {[%clk 0:00:19.6]} 56. Nf3+ {[%clk 0:00:20.3]} 56... Kd5 {[%clk 0:00:19.4]}
57. Ng5 {[%clk 0:00:21.2]} 57... Nd4 {[%clk 0:00:19.1]} 58. Nh7 {[%clk
0:00:19.7]} 58... Ke4 {[%clk 0:00:18.4]} 59. Ng5+ {[%clk 0:00:19.9]} 59... Kf5
{[%clk 0:00:19.1]} 60. Nh7 {[%clk 0:00:20.6]} 60... Nc6 {[%clk 0:00:18.5]} 61.
Ng5 {[%clk 0:00:20.6]} 61... Bd5 {[%clk 0:00:18.3]} 62. Nh7 {[%clk 0:00:20.2]}
62... f6 {[%clk 0:00:16.9]} 63. Nf8 {[%clk 0:00:19.8]} 63... Be6 {[%clk
0:00:16.9]} 64. Nh7 {[%clk 0:00:19.3]} 64... Ne7 {[%clk 0:00:15.9]} 65. Nf8
{[%clk 0:00:19.1]} 65... Nd5 {[%clk 0:00:13.9]} 66. Kf3 {[%clk 0:00:19.2]} 66...
Nb6 {[%clk 0:00:13.3]} 67. Nh7 {[%clk 0:00:18.8]} 67... Nd7 {[%clk 0:00:12.7]}
68. Ke3 {[%clk 0:00:16.9]} 68... Bg8 {[%clk 0:00:12.9]} 69. Ng5 {[%clk
0:00:14.2]} 69... fxg5 {[%clk 0:00:13.8]} 70. fxg5 {[%clk 0:00:13.2]} 70... Kg4
{[%clk 0:00:14.3]} 0-1

[Event "Early-Titled-Tuesday-Blitz-October-03-2023"]
[Site "Chess.com"]
[Date "2023.10.03"]
[Round "6"]
[White "Iskusnyh"]
[Black "Doudou2015"]
[Result "1-0"]
[WhiteElo "2619"]
[BlackElo "2172"]
[TimeControl "180+1"]
[EndTime "9:08:06 PDT"]
[Termination "Iskusnyh won on time"]

1. d4 {[%clk 0:03:00.9]} 1... d5 {[%clk 0:02:59.4]} 2. c4 {[%clk 0:02:56.6]}
2... e6 {[%clk 0:02:59.6]} 3. Nf3 {[%clk 0:02:56.1]} 3... c6 {[%clk 0:02:59.5]}
4. b3 {[%clk 0:02:53.8]} 4... Nf6 {[%clk 0:02:58.3]} 5. e3 {[%clk 0:02:51.5]}
5... Be7 {[%clk 0:02:57.8]} 6. Bd3 {[%clk 0:02:51.4]} 6... O-O {[%clk
0:02:58.1]} 7. O-O {[%clk 0:02:49.7]} 7... Nbd7 {[%clk 0:02:58.7]} 8. Bb2 {[%clk
0:02:49.3]} 8... b6 {[%clk 0:02:53.4]} 9. Nc3 {[%clk 0:02:46.9]} 9... Bb7 {[%clk
0:02:53.2]} 10. Qe2 {[%clk 0:02:46.3]} 10... Rc8 {[%clk 0:02:53]} 11. Rfd1
{[%clk 0:02:43.1]} 11... Re8 {[%clk 0:02:50.9]} 12. e4 {[%clk 0:02:40.8]} 12...
dxe4 {[%clk 0:02:50.6]} 13. Nxe4 {[%clk 0:02:41.7]} 13... Qc7 {[%clk 0:02:43.5]}
14. Nxf6+ {[%clk 0:02:31.9]} 14... Nxf6 {[%clk 0:02:44.4]} 15. c5 {[%clk
0:02:31.8]} 15... bxc5 {[%clk 0:02:21.6]} 16. dxc5 {[%clk 0:02:31.2]} 16... Bxc5
{[%clk 0:02:21]} 17. Bxf6 {[%clk 0:02:29.6]} 17... gxf6 {[%clk 0:02:21.9]} 18.
Bxh7+ {[%clk 0:02:29.4]} 18... Kxh7 {[%clk 0:02:17]} 19. Qc2+ {[%clk 0:02:28.9]}
19... Kg7 {[%clk 0:02:17.1]} 20. Qxc5 {[%clk 0:02:28.7]} 20... Qb6 {[%clk
0:02:08]} 21. Qh5 {[%clk 0:01:52.9]} 21... Rcd8 {[%clk 0:01:53.2]} 22. Qg4+
{[%clk 0:01:47.6]} 22... Kf8 {[%clk 0:01:52.2]} 23. Qf4 {[%clk 0:01:45.2]} 23...
Ke7 {[%clk 0:01:49.9]} 24. Re1 {[%clk 0:01:39.8]} 24... Rd5 {[%clk 0:01:41.8]}
25. h3 {[%clk 0:01:28.3]} 25... Red8 {[%clk 0:01:37.6]} 26. Nh2 {[%clk
0:01:27.4]} 26... Qa5 {[%clk 0:01:23.5]} 27. Ng4 {[%clk 0:01:23]} 27... Rf5
{[%clk 0:01:22.6]} 28. Qe3 {[%clk 0:01:18.6]} 28... Qc5 {[%clk 0:01:17.3]} 29.
Rac1 {[%clk 0:01:01.4]} 29... Qxe3 {[%clk 0:01:13.4]} 30. Nxe3 {[%clk
0:01:02.3]} 30... Re5 {[%clk 0:01:10.3]} 31. Red1 {[%clk 0:01:01.5]} 31... Rxd1+
{[%clk 0:01:09]} 32. Rxd1 {[%clk 0:01:01.2]} 32... c5 {[%clk 0:01:07.9]} 33. g4
{[%clk 0:00:53.8]} 33... Bf3 {[%clk 0:01:02.1]} 34. Rd2 {[%clk 0:00:52.6]} 34...
Re4 {[%clk 0:00:51.8]} 35. Kh2 {[%clk 0:00:51]} 35... Rd4 {[%clk 0:00:46.3]} 36.
Rc2 {[%clk 0:00:50.4]} 36... Be4 {[%clk 0:00:24.3]} 37. Rxc5 {[%clk 0:00:28.5]}
37... Rd2 {[%clk 0:00:24.2]} 38. Kg3 {[%clk 0:00:28.5]} 38... Rxa2 {[%clk
0:00:22.9]} 39. Rc7+ {[%clk 0:00:26.1]} 39... Kf8 {[%clk 0:00:22.5]} 40. h4
{[%clk 0:00:26]} 40... Rb2 {[%clk 0:00:16.9]} 41. Rxa7 {[%clk 0:00:22]} 41...
Rxb3 {[%clk 0:00:16.5]} 42. g5 {[%clk 0:00:20.2]} 42... fxg5 {[%clk 0:00:14.9]}
43. hxg5 {[%clk 0:00:21.1]} 43... Bg6 {[%clk 0:00:13.1]} 44. Rc7 {[%clk
0:00:18.1]} 44... Rb5 {[%clk 0:00:12.9]} 45. Kf4 {[%clk 0:00:17.7]} 45... Rb4+
{[%clk 0:00:13.2]} 46. Kg3 {[%clk 0:00:17.2]} 46... Rb5 {[%clk 0:00:13.8]} 47.
Kg4 {[%clk 0:00:14.7]} 47... Rb1 {[%clk 0:00:12.6]} 48. Kf3 {[%clk 0:00:11.3]}
48... Rb3 {[%clk 0:00:12.2]} 49. Kf4 {[%clk 0:00:11.4]} 49... Rb4+ {[%clk
0:00:11.8]} 50. Ke5 {[%clk 0:00:11.6]} 50... Rb5+ {[%clk 0:00:11.6]} 51. Kf6
{[%clk 0:00:11.6]} 51... Rb8 {[%clk 0:00:10.5]} 52. Ng4 {[%clk 0:00:11.4]} 52...
Ra8 {[%clk 0:00:08.2]} 53. Ne5 {[%clk 0:00:11.4]} 53... Bh5 {[%clk 0:00:06.9]}
54. f4 {[%clk 0:00:06.8]} 54... Rb8 {[%clk 0:00:05.6]} 55. Nxf7 {[%clk
0:00:06.2]} 55... Bxf7 {[%clk 0:00:04.9]} 56. Rxf7+ {[%clk 0:00:05.8]} 56... Kg8
{[%clk 0:00:04.9]} 57. Rg7+ {[%clk 0:00:03.7]} 57... Kf8 {[%clk 0:00:04.4]} 58.
Rh7 {[%clk 0:00:03.8]} 58... Kg8 {[%clk 0:00:04.2]} 59. g6 {[%clk 0:00:04]}
59... Rf8+ {[%clk 0:00:03.4]} 60. Kg5 {[%clk 0:00:02.4]} 60... Rf5+ {[%clk
0:00:03.6]} 61. Kg4 {[%clk 0:00:02.6]} 61... Rf6 {[%clk 0:00:04.1]} 62. Rh6
{[%clk 0:00:02]} 1-0